{"text_format":"1","workbook":"xlsx","n_sheets":3,"sheets":["Prompt","Cedula3BS","Enviar"],"not_rendered":{"charts":0,"images":4,"macros":1,"external_links":0,"defined_names":0,"comments":1,"pivot_tables":0},"unopened":[],"bounds":{"document_bytes":16777216,"sheet_cells":100000,"rows_first":2000,"rows_last":500,"rows_between":2000,"halvings":0,"cell_chars":16384,"cell_head_chars":4096},"cells_cut":0,"cells_raw":0,"read":"whole","date_system":"1900"}

{"sheet":"Prompt","index":0,"n_rows":38,"n_cols":4,"rows_kept":38,"cut":false,"hidden":false,"merged":[[0,3,1,5],[3,1,5,8],[8,1,9,8],[37,1,38,8]]}
[null,null,null,"¡ATENCIÓN!"]
[]
[]
[null,"Para hacer uso de las funcionalidades de esta Cédula Electrónica debe habilitar macros"]
[]
[]
[]
[]
[null,"Si utiliza Excel 2000, 2002, 2003 siga el siguiente procedimiento:"]
[]
[]
[]
[]
[]
[]
[]
[]
[]
[]
[]
[]
[]
[]
[]
[]
[]
[]
[]
[]
[]
[]
[]
[]
[]
[]
[]
[]
[null,"Si utiliza Excel 2007 siga el siguiente procedimiento:"]

{"sheet":"Cedula3BS","index":1,"n_rows":33,"n_cols":19,"rows_kept":33,"cut":false,"hidden":true,"merged":[[1,6,1,13],[2,6,2,13],[3,6,3,13],[21,17,21,18],[20,2,22,6],[12,16,12,17],[14,5,14,17],[1,16,1,18],[31,2,31,18],[4,2,4,3],[2,16,4,18],[18,2,18,18],[12,5,12,6],[21,15,21,16],[21,11,21,12],[21,13,21,14],[20,7,21,8],[21,9,21,10]]}
[]
[null,null,null,null,null,null,"CENSO EDUCATIVO 2023",null,null,null,null,null,null,null,null,null,"CÉDULA"]
[null,null,null,null,null,null,"EDUCACIÓN BÁSICA REGULAR",null,null,null,null,null,null,null,null,null,"3BS"]
[null,null,null,null,null,null,"SECUNDARIA"]
[null,null,"Versión :",null,1]
[null,null,"INSTRUCCIONES DEL FORMATO ELECTRÓNICO "]
[]
[]
[]
[null,null,"IDENTIFICACIÓN DEL SERVICIO EDUCATIVO"]
[]
[]
[null,null,"1.  CÓDIGO MODULAR :",null,null,null,null,null,null,"NÚMERO DE ANEXO : ",0,null,null,null,null,"2. CÓDIGO DE LOCAL EDUCATIVO : "]
[]
[null,null,"3.  NOMBRE DEL SERVICIO :",null,null,""]
[]
[]
[null,null,"200. RESULTADO DEL EJERCICIO EDUCATIVO 2023 (Requieren recuperación pedagógica)"]
[null,null,"Complete y remita esta sección de la cédula sólo si reportó alumnos que requieren recuperación pedagógica en la sección 100. Para tal efecto, ingrese a https://escale2.minedu.gob.pe:8009/estadistica/ y descargue el formato de la sección correspondiente de su Tablero de Control."]
[null,null,"201. RESULTADO DEL EJERCICIO EDUCATIVO A FEBRERO DE 2024, POR GRADO DE ESTUDIO Y SEXO"]
[null,null,"SITUACIÓN al  -  29.02.2024",null,null,null,null,"TOTAL",null,"GRADO DE ESTUDIO Y SEXO"]
[null,null,null,null,null,null,null,null,null,"1º",null,"2º",null,"3º",null,"4º",null,"5º"]
[null,null,null,null,null,null,null,"H","M","H","M","H","M","H","M","H","M","H","M"]
[null,null,"Requiere recuperación pedagógica",null,null,null,null,{"$f":"J24+L24+N24+P24+R24","v":0},{"$f":"K24+M24+O24+Q24+S24","v":0}]
[]
["00",null,"TOTAL MATRÍCULA",null,null,null,null,{"$f":"SUM(H27:H31)","v":0},0,0,0,0,0,0,0,0,0,0,0]
["01",null,"Promovidos de grado de la mismo S.E.",null,null,null,null,{"$f":"J27+L27+N27+P27+R27","v":0},0]
["02",null,"Promovidos de grado de otro S.E.",null,null,null,null,0,0]
["03",null,"Permanecen en el grado de la mismo S.E.",null,null,null,null,0,0]
["04",null,"Permanecen en el grado de otro S.E.",null,null,null,null,0,0]
["05",null,"No se presentaron",null,null,null,null,0,0]
[null,null,"La suma de (Promovidos de grado de la mismo S.E. + Permanecen en el grado de la mismo S.E. + No se presentaron), debe ser igual a los reportados en el rubro “Requieren recuperación pedagógica” de la tabla 101."]
[null,null,"Nota.- Si los alumnos tienen más de dos cursos en recuperación y no se presentaron a recuperación considerarlos como desaprobados."]

{"sheet":"Enviar","index":2,"n_rows":8,"n_cols":3,"rows_kept":8,"cut":false,"hidden":true,"merged":[[0,0,0,3]]}
["CENSO EDUCATIVO 2023\nRESULTADO DEL EJERCICIO EDUCATIVO"]
[]
[]
[null,"Paso 1:","Realice el ENVÍO con su clave EOL."]
[]
[null,"Paso 2:","Una vez realizado el ENVÍO,  Revise su constancia de envio."]
[]
[null,"  ADVERTENCIA","Asegúrese de registrar toda la información del nivel informante"]